Workbook

Sheet ورقة1
A1: عميل 1 | B1: 500 | C1: 1000 | D1: 3000
A2: عميل 2 | B2: 66 | C2: 100 | D2: 3001
A3: عميل 3 | B3: 33 | C3: 5000 | D3: 3002
A4: عميل 4 | B4: 900 | C4: 10000 | D4: 3003
A5: عميل 5 | B5: 77 | C5: 89 | D5: 3004
A6: عميل 6 | B6: 300 | C6: 89 | D6: 3005
A7: عميل 7 | B7: 200 | C7: 89 | D7: 3006
A8: عميل 8 | B8: 700 | C8: 89 | D8: 3007
A9: عميل 9 | B9: 22 | C9: 89 | D9: 3008
A10: عميل 10 | B10: 88 | C10: 89 | D10: 3009
A11: عميل 11 | B11: 55 | C11: 89 | D11: 3010
A12: عميل 12 | B12: 100 | C12: 89 | D12: 3011

Sheet ورقة2
A1: عميل 9 | B1: =VLOOKUP(A1,ورقة1!$A$1:$B$12,2,0) -> 22 | C1: =VLOOKUP(A1,ورقة1!$A$1:$D$12,3,0) -> 89 | D1: =VLOOKUP(A1,ورقة1!$A$1:$D$12,4,0) -> 3008 | G1: اريد عند النزول الى الصف الثانى ان يتحول الاول
A2: عميل 8 | B2: =VLOOKUP(A2,ورقة1!$A$1:$B$12,2,0) -> 700 | C2: =VLOOKUP(A2,ورقة1!$A$1:$D$12,3,0) -> 89 | D2: =VLOOKUP(A2,ورقة1!$A$1:$D$12,4,0) -> 3007 | G2: لقيم وعند النزول الى الصف الثالث ان يتحول الثانى لقيم وهكذا عند ترك كل صف
A3: عميل 7 | B3: =VLOOKUP(A3,ورقة1!$A$1:$B$12,2,0) -> 200 | C3: =VLOOKUP(A3,ورقة1!$A$1:$D$12,3,0) -> 89 | D3: =VLOOKUP(A3,ورقة1!$A$1:$D$12,4,0) -> 3006
A4: عميل 6 | B4: =VLOOKUP(A4,ورقة1!$A$1:$B$12,2,0) -> 300 | C4: =VLOOKUP(A4,ورقة1!$A$1:$D$12,3,0) -> 89 | D4: =VLOOKUP(A4,ورقة1!$A$1:$D$12,4,0) -> 3005 | G4: عند اختيار حرف X من القائمة المنسدلة في هذا العمود يقوم الماكرو بتبديل المعادلات في الأعمدة D ، C ، B من الصف نفسه إلى قيم....
A5: عميل 5 | B5: =VLOOKUP(A5,ورقة1!$A$1:$B$12,2,0) -> 77 | C5: =VLOOKUP(A5,ورقة1!$A$1:$D$12,3,0) -> 89 | D5: =VLOOKUP(A5,ورقة1!$A$1:$D$12,4,0) -> 3004
A6: عميل 4 | B6: =VLOOKUP(A6,ورقة1!$A$1:$B$12,2,0) -> 900 | C6: =VLOOKUP(A6,ورقة1!$A$1:$D$12,3,0) -> 10000 | D6: =VLOOKUP(A6,ورقة1!$A$1:$D$12,4,0) -> 3003
A7: عميل 3 | B7: =VLOOKUP(A7,ورقة1!$A$1:$B$12,2,0) -> 33 | C7: =VLOOKUP(A7,ورقة1!$A$1:$D$12,3,0) -> 5000 | D7: =VLOOKUP(A7,ورقة1!$A$1:$D$12,4,0) -> 3002
A8: عميل 2 | B8: =VLOOKUP(A8,ورقة1!$A$1:$B$12,2,0) -> 66 | C8: =VLOOKUP(A8,ورقة1!$A$1:$D$12,3,0) -> 100 | D8: =VLOOKUP(A8,ورقة1!$A$1:$D$12,4,0) -> 3001
A9: عميل 12 | B9: =VLOOKUP(A9,ورقة1!$A$1:$B$12,2,0) -> 100 | C9: =VLOOKUP(A9,ورقة1!$A$1:$D$12,3,0) -> 89 | D9: =VLOOKUP(A9,ورقة1!$A$1:$D$12,4,0) -> 3011
A10: عميل 11 | B10: =VLOOKUP(A10,ورقة1!$A$1:$B$12,2,0) -> 55 | C10: =VLOOKUP(A10,ورقة1!$A$1:$D$12,3,0) -> 89 | D10: =VLOOKUP(A10,ورقة1!$A$1:$D$12,4,0) -> 3010
A11: عميل 10 | B11: =VLOOKUP(A11,ورقة1!$A$1:$B$12,2,0) -> 88 | C11: =VLOOKUP(A11,ورقة1!$A$1:$D$12,3,0) -> 89 | D11: =VLOOKUP(A11,ورقة1!$A$1:$D$12,4,0) -> 3009
A12: عميل 1 | B12: =VLOOKUP(A12,ورقة1!$A$1:$B$12,2,0) -> 500 | C12: =VLOOKUP(A12,ورقة1!$A$1:$D$12,3,0) -> 1000 | D12: =VLOOKUP(A12,ورقة1!$A$1:$D$12,4,0) -> 3000

Sheet ورقة3
